bitfinex-derivatives/quotes_BTCF0:USTF0_20210105
["timestamp","ask_amount","ask_price","bid_price","bid_amount"]
[1609828797015,4.8686,30938.0,30897.0,4.81754]
[1609828797615,0.13632608,30925.0,30909.0,0.13632608]
[1609828797816,0.28316608,30925.0,30909.0,0.13632608]
[1609828798116,0.7648,30924.0,30909.0,0.13632608]
[1609828798517,0.0957,30923.0,30909.0,0.13632608]
[1609828798918,0.0957,30923.0,30897.0,0.10094]
[1609828799218,4.09846608,30925.0,30897.0,0.10094]
[1609828799621,3.96214,30925.0,30897.0,0.10094]
[1609828800019,0.13632608,30923.0,30903.0,0.13632608]
[1609828801020,0.13632608,30923.0,30903.0,0.67562608]
[1609828802123,0.13632608,30923.0,30912.0,0.13632608]
[1609828802923,0.14684,30925.0,30912.0,3.83752608]
[1609828803124,4.6239,30950.0,30912.0,3.7012]
[1609828803326,0.2737,30951.0,30910.0,0.14813]
[1609828803527,1.36210065,30964.0,30910.0,0.14813]
[1609828803528,0.84940452,30963.0,30919.0,3.9446]
[1609828803726,0.84940452,30963.0,30919.0,4.06977]
[1609828804130,0.0972,30962.0,30919.0,4.06977]
[1609828804328,0.3766,30964.0,30919.0,4.06977]
[1609828804528,0.09528,30962.0,30919.0,4.06977]
[1609828804728,0.13632608,30942.0,30940.0,0.13632608]
[1609828805128,0.13664,30952.0,30940.0,0.13632608]
[1609828806528,0.09528,30962.0,30940.0,0.13632608]
[1609828806731,0.09528,30962.0,30950.0,0.13632608]
[1609828806932,0.09528,30962.0,30952.0,4.5508]
[1609828808731,0.09528,30962.0,30958.0,0.13632608]
[1609828809735,0.2772,30986.0,30959.0,0.7077]
[1609828809936,0.84719676,30991.0,30958.0,0.13632608]
[1609828810338,0.84719676,30991.0,30976.0,3.9619]
[1609828810739,0.84719676,30991.0,30990.0,0.13632608]
[1609828810948,0.84719676,30991.0,30990.0,0.85242608]
[1609828811340,0.12929676,30991.0,30990.0,0.85242608]
[1609828813341,0.12929676,30991.0,30983.0,0.12943]
[1609828813943,0.11008,30998.0,30983.0,0.12943]
[1609828814543,0.11008,30998.0,30987.0,4.8691]
[1609828814745,0.2792,31016.0,30997.0,0.13632608]
[1609828814943,0.2792,31016.0,30998.0,0.7301]
[1609828816244,0.0963,31015.0,30998.0,0.7301]
[1609828816445,0.0967,31014.0,30998.0,0.7301]
[1609828816645,0.0967,31014.0,31008.0,0.13632608]
[1609828816850,0.13374,31015.0,31008.0,0.13632608]
[1609828818248,0.0958,31014.0,31008.0,0.13632608]
[1609828818447,0.0958,31014.0,31008.0,0.07292608]
[1609828818648,0.13632608,31009.0,31004.0,0.13632608]
[1609828819048,0.13632608,31009.0,30998.0,0.7301]
[1609828820652,0.0958,31014.0,31000.0,0.13632608]
[1609828821353,0.13374,31015.0,31000.0,0.13632608]
[1609828821552,0.2792,31016.0,31000.0,0.13632608]
[1609828822755,0.13632608,31009.0,31004.0,0.13632608]
[1609828823656,0.42094,31016.0,30997.0,0.09808]
[1609828824556,0.42094,31016.0,30995.0,3.7335]
[1609828824757,0.13632608,31007.0,30995.0,3.7335]
[1609828824957,0.0953,31006.0,30990.0,0.09818]
[1609828825157,0.0953,31006.0,30983.0,0.12943]
[1609828825358,0.0953,31006.0,30975.0,5.1086]
[1609828826862,0.13632608,30976.0,30975.0,5.1086]
[1609828827058,0.13632608,30976.0,30973.0,0.13632608]
[1609828827473,0.13627,30989.0,30973.0,0.13632608]
[1609828827859,0.13627,30989.0,30973.0,5.48042608]
[1609828828662,0.3807,31005.0,30973.0,5.48042608]
[1609828828859,0.3807,31005.0,30979.0,0.13632608]
[1609828828860,0.13632608,30990.0,30979.0,0.13632608]
[1609828829560,0.13632608,30990.0,30980.0,0.7021]
[1609828829762,0.11964,30999.0,30980.0,0.7021]
[1609828829960,0.11964,30999.0,30980.0,0.82818]
[1609828830764,0.11964,30999.0,30992.0,0.13632608]
[1609828831663,0.2855,31005.0,30992.0,0.13632608]
[1609828832464,0.2855,31005.0,30989.0,4.6431]
[1609828833063,0.2855,31005.0,30998.0,0.13632608]
[1609828834067,0.2855,31005.0,30997.0,0.11275]
[1609828835067,0.2855,31005.0,31004.0,0.13632608]
[1609828837068,0.2855,31005.0,31001.0,4.4135]
[1609828837368,0.2855,31005.0,30997.0,0.11275]
[1609828837569,0.2855,31005.0,31004.0,0.13632608]
[1609828838168,0.2855,31005.0,30997.0,0.11275]
[1609828838572,0.2855,31005.0,30989.0,4.9501]
[1609828839569,0.2855,31005.0,30987.0,0.1424]
[1609828839570,0.13632608,30997.0,30987.0,0.1424]
[1609828839769,0.13632608,30997.0,30980.0,0.12608]
[1609828839970,0.13632608,30997.0,30972.0,4.151]
[1609828840171,0.2855,31005.0,30972.0,4.151]
[1609828840571,0.3835,31005.0,30972.0,4.151]
[1609828841572,0.13632608,30979.0,30975.0,0.13632608]
[1609828842274,0.13632608,30979.0,30972.0,4.08882608]
[1609828842475,0.13632608,30979.0,30934.0,0.2811]
[1609828842675,0.13632608,30979.0,30937.0,5.0272]
[1609828842874,0.86702608,30979.0,30937.0,5.0272]
[1609828843475,0.86702608,30979.0,30937.0,5.1232]
[1609828843677,0.7307,30979.0,30937.0,5.1232]
[1609828843875,0.12811,30987.0,30961.0,4.8702]
[1609828844075,0.12811,30987.0,30961.0,4.97753]
[1609828845581,0.13632608,30983.0,30977.0,0.13632608]
[1609828845781,0.12811,30987.0,30977.0,0.13632608]
[1609828846484,0.20187,30994.0,30977.0,0.13632608]
[1609828847584,0.13632608,30979.0,30977.0,0.13632608]
[1609828847789,0.20187,30994.0,30977.0,0.13632608]
[1609828849590,0.13632608,30978.0,30977.0,0.13632608]
[1609828850791,0.13632608,30978.0,30975.0,0.13559]
[1609828851092,0.13632608,30978.0,30961.0,4.97753]
[1609828851295,0.13632608,30978.0,30961.0,0.10733]
[1609828851493,0.13632608,30978.0,30948.0,5.0871]
[1609828851694,0.13632608,30968.0,30966.0,0.13632608]
[1609828851894,0.13632608,30968.0,30948.0,5.0871]
[1609828852094,0.13632608,30968.0,30928.0,1.74838321]
[1609828852294,0.13632608,30968.0,30926.0,4.9676]
[1609828853294,0.13632608,30968.0,30918.0,1.75535449]
[1609828853494,4.627,30957.0,30918.0,1.75535449]
[1609828853695,0.13632608,30938.0,30928.0,0.13632608]
[1609828854095,4.77606,30957.0,30928.0,0.13632608]
[1609828854297,0.14906,30957.0,30929.0,5.226]
[1609828855099,0.1178,30970.0,30929.0,5.226]
[1609828855299,0.1178,30970.0,30928.0,0.27069608]
[1609828855498,0.1178,30970.0,30941.0,4.5556]
[1609828855700,0.13632608,30965.0,30953.0,0.13632608]
[1609828855900,0.13632608,30965.0,30941.0,4.6964]
[1609828856100,0.13632608,30965.0,30941.0,0.1408]
[1609828856503,0.6726,30963.0,30941.0,0.1408]
[1609828856902,0.11716,30963.0,30941.0,0.1408]
[1609828857303,4.697,30960.0,30928.0,0.13437]
[1609828857705,0.13632608,30943.0,30934.0,0.13632608]
[1609828858105,0.13632608,30943.0,30935.0,0.0976]
[1609828858306,0.13632608,30943.0,30935.0,0.2392]
[1609828858705,0.12926,30955.0,30935.0,0.2392]
[1609828858907,0.12926,30955.0,30935.0,0.1416]
[1609828859407,4.697,30960.0,30935.0,0.1416]
[1609828859607,0.13632608,30946.0,30935.0,0.1416]
[1609828859808,0.096,30945.0,30935.0,0.1416]
[1609828860008,0.096,30945.0,30936.0,0.0978]
[1609828860908,0.13632608,30946.0,30935.0,0.1416]
[1609828861910,0.13632608,30946.0,30936.0,0.0971]
[1609828862112,0.097,30959.0,30935.0,0.1416]
[1609828862510,0.11716,30963.0,30935.0,0.1416]
[1609828862720,0.1178,30970.0,30937.0,3.6299]
[1609828862917,0.85359966,30980.0,30937.0,3.6299]
[1609828863516,0.0971,30978.0,30937.0,3.6299]
[1609828863714,0.13632608,30977.0,30973.0,0.13632608]
[1609828863912,0.13632608,30977.0,30937.0,3.6299]
[1609828864113,0.13632608,30977.0,30960.0,0.09186]
[1609828864316,0.097,30973.0,30960.0,0.09186]
[1609828864911,0.097,30973.0,30961.0,0.0957]
[1609828865711,0.097,30973.0,30972.0,0.13632608]
[1609828865913,0.0976,30978.0,30972.0,0.25921608]
[1609828866613,0.85289743,31004.0,30972.0,0.25921608]
[1609828867814,0.85289743,31004.0,30972.0,0.12289]
[1609828868014,0.0953,31003.0,30972.0,0.12289]
[1609828868414,0.19883,31003.0,30973.0,0.0977]
[1609828868615,0.6381,31001.0,30972.0,0.12289]
[1609828868815,0.19883,31003.0,30972.0,0.12289]
[1609828869015,5.2516,30998.0,30972.0,0.12289]
[1609828869216,0.0966,30997.0,30972.0,0.12289]
[1609828869816,0.13632608,30984.0,30974.0,0.13632608]
[1609828870717,0.13632608,30984.0,30972.0,0.11049]
[1609828870917,0.0955,30983.0,30958.0,3.8306]
[1609828871117,0.0955,30983.0,28000.0,1.14]
[1609828871318,0.0955,30983.0,30946.0,5.2648]
[1609828871517,0.0955,30983.0,30946.0,5.38257]
[1609828871718,0.13632608,30965.0,30955.0,0.13632608]
[1609828871920,0.13632608,30965.0,30946.0,0.11777]
[1609828872519,4.3409,30971.0,30946.0,0.11777]
[1609828873421,0.0971,30978.0,30946.0,0.11777]
[1609828873824,0.13632608,30961.0,30956.0,0.13632608]
[1609828874825,0.12968,30981.0,30956.0,0.13632608]
[1609828875223,0.12968,30981.0,30956.0,0.22816608]
[1609828875725,0.12968,30981.0,30971.0,0.13632608]
[1609828875726,0.13632608,30974.0,30971.0,0.13632608]
[1609828875925,0.13632608,30974.0,30956.0,0.09184]
[1609828876125,0.12968,30981.0,30956.0,0.09184]
[1609828876326,0.13804,30989.0,30956.0,0.09184]
[1609828876526,0.13804,30989.0,30956.0,0.70084]
[1609828877127,0.0965,30988.0,30956.0,0.70084]
[1609828877325,0.14095,30989.0,30956.0,0.70084]
[1609828877726,0.13632608,30978.0,30974.0,0.13632608]
[1609828880028,0.13632608,30978.0,30965.0,4.7864]
[1609828880432,0.13632608,30978.0,30956.0,0.09184]
[1609828880630,0.13632608,30978.0,30950.0,4.1537]
[1609828881730,0.23439,30982.0,30946.0,0.11777]
[1609828881933,4.3866,30980.0,30937.0,4.4048]
[1609828884132,4.483,30980.0,30963.0,0.13632608]
[1609828884332,4.483,30980.0,30959.0,0.14728]
[1609828884734,0.0964,30980.0,30959.0,0.14728]
[1609828885735,4.249,30974.0,30959.0,0.03838]
[1609828885936,0.0971,30973.0,30959.0,0.03838]
[1609828886138,0.13632608,30960.0,30952.0,0.13632608]
[1609828886334,0.13632608,30960.0,30940.0,4.275]
[1609828886535,0.13632608,30960.0,30933.0,1.74387912]
[1609828886736,0.13632608,30960.0,30928.0,0.13437]
[1609828886737,3.83102608,30960.0,30928.0,0.13437]
[1609828887339,3.83102608,30960.0,30925.0,1.75621224]
[1609828888238,0.13632608,30945.0,30938.0,0.13632608]
[1609828888637,0.11735,30955.0,30938.0,0.13632608]
[1609828888837,0.11735,30955.0,30938.0,0.11518]
[1609828889340,0.21315,30955.0,30938.0,0.11518]
[1609828890144,0.11735,30955.0,30951.0,0.13632608]
[1609828890344,0.11735,30955.0,30938.0,0.11518]
[1609828890541,0.10094,30965.0,30945.0,0.14709]
[1609828891744,4.9123,30975.0,30945.0,0.14709]
[1609828892144,0.13632608,30951.0,30947.0,0.13632608]
[1609828892548,0.12978,30965.0,30947.0,0.13632608]
[1609828893648,4.9123,30975.0,30947.0,0.13632608]
[1609828894249,0.0978,30978.0,30958.0,0.13632608]
[1609828894448,0.0978,30978.0,30958.0,0.25840608]
[1609828896251,0.13632608,30960.0,30958.0,0.25840608]
[1609828898652,0.13632608,30960.0,30958.0,0.12208]
[1609828899453,0.13632608,30960.0,30945.0,0.14709]
[1609828899652,0.13632608,30960.0,30939.0,3.7754]
[1609828900152,0.0982,30962.0,30944.0,0.13632608]
[1609828900952,0.0982,30962.0,30939.0,3.7754]
[1609828902155,0.13632608,30940.0,30938.0,0.11518]
[1609828902555,0.13632608,30940.0,30934.0,0.13632608]
[1609828903156,0.13632608,30940.0,30922.0,3.9274]
[1609828904257,4.8008,30949.0,30931.0,0.13632608]
[1609828904457,0.098,30949.0,30931.0,0.25452608]
[1609828906058,0.2928,30954.0,30931.0,0.25452608]
[1609828906258,0.2928,30954.0,30931.0,0.1182]
[1609828907262,5.79813715,30968.0,30931.0,0.1182]
[1609828908365,5.79813715,30968.0,30953.0,0.13632608]
[1609828908366,0.13632608,30954.0,30953.0,0.13632608]
[1609828910168,4.7138,30961.0,30936.0,5.1915]
[1609828910568,4.7138,30961.0,30950.0,0.13632608]
[1609828910770,4.7138,30961.0,30950.0,0.27854608]
[1609828911472,4.7138,30961.0,30950.0,0.14222]
[1609828912074,0.0977,30962.0,30950.0,0.14222]
[1609828912573,0.13632608,30951.0,30950.0,0.14222]
[1609828913073,0.13632608,30951.0,30946.0,4.9718]
[1609828913673,0.13632608,30951.0,30946.0,4.9655]
[1609828914274,0.13632608,30951.0,30931.0,0.1182]
[1609828914474,0.13632608,30951.0,30931.0,3.9038]
[1609828914676,0.0973,30954.0,30934.0,0.13632608]
[1609828914876,0.0973,30954.0,30934.0,0.22906608]
[1609828915378,0.0973,30954.0,30934.0,0.09274]
[1609828916781,0.13632608,30935.0,30934.0,0.09274]
[1609828916981,0.0968,30952.0,30934.0,0.09274]
[1609828917380,5.2452,30950.0,30934.0,0.09274]
[1609828918681,0.13632608,30935.0,30934.0,0.09274]
[1609828919585,0.13632608,30935.0,30926.0,0.13632608]
[1609828920589,0.24804,30944.0,30930.0,0.13632608]
[1609828920988,0.24804,30944.0,30924.0,0.12885]
[1609828922590,0.24804,30944.0,30925.0,0.13632608]
[1609828923993,0.24804,30944.0,30924.0,0.12885]
[1609828924591,0.13632608,30925.0,30924.0,0.12885]
[1609828925795,0.13632608,30925.0,30922.0,0.13632608]
[1609828927797,0.0981,30938.0,30922.0,0.13632608]
[1609828927998,0.15004,30944.0,30931.0,4.8546]
[1609828928196,0.8572152,30958.0,30931.0,4.8546]
[1609828928397,0.8572152,30958.0,30931.0,0.09639]
[1609828928597,0.8572152,30958.0,30952.0,0.13632608]
[1609828928798,0.8572152,30958.0,30942.0,4.1501]
[1609828928998,0.48474664,30966.0,30948.0,0.12894]
[1609828929196,0.48474664,30966.0,30949.0,0.631]
[1609828929798,0.0979,30972.0,30949.0,0.631]
[1609828929998,0.70025172,30978.0,30949.0,0.631]
[1609828930399,5.02092769,30983.0,30949.0,0.631]
[1609828930599,0.70082769,30983.0,30948.0,0.12894]
[1609828930799,0.70082769,30983.0,30968.0,0.13632608]
[1609828931000,0.09292,30983.0,30968.0,0.13632608]
[1609828931200,0.09292,30983.0,30968.0,0.25450608]
[1609828932801,0.09292,30983.0,30976.0,0.13632608]
[1609828933604,0.09292,30983.0,30968.0,0.11818]
[1609828934605,5.3936,30981.0,30968.0,0.11818]
[1609828934804,5.3936,30981.0,30954.0,5.4045]
[1609828935405,0.13632608,30956.0,30955.0,0.10582608]
[1609828935604,0.13632608,30956.0,30948.0,0.12894]
[1609828935804,0.13632608,30956.0,30944.0,4.7298]
[1609828936304,5.1405,30969.0,30944.0,4.7298]
[1609828936906,5.1405,30969.0,30944.0,4.84144]
[1609828937505,0.13632608,30950.0,30949.0,0.13632608]
[1609828938407,0.13632608,30950.0,30944.0,4.84144]
[1609828939405,0.13632608,30945.0,30944.0,0.11164]
[1609828941808,0.13632608,30945.0,30939.0,0.13632608]
[1609828942409,0.0973,30965.0,30919.0,1.73324397]
[1609828942611,0.0973,30965.0,30943.0,4.6503]
[1609828942810,0.0973,30965.0,30943.0,4.78624]
[1609828943412,0.0973,30965.0,30955.0,0.13632608]
[1609828943610,0.0973,30965.0,30955.0,0.23257608]
[1609828943910,0.0973,30965.0,30955.0,0.09625]
[1609828944511,0.13285,30973.0,30955.0,0.09625]
[1609828945011,4.3621,30975.0,30955.0,0.09625]
[1609828945511,4.3621,30975.0,30958.0,0.13632608]
[1609828946412,4.3621,30975.0,30955.0,0.09625]
[1609828946612,4.4837,30975.0,30955.0,0.09625]
[1609828947416,0.13632608,30956.0,30955.0,0.09625]
[1609828947814,0.13632608,30956.0,30946.0,0.13632608]
[1609828948014,0.13632608,30956.0,30943.0,4.78624]
[1609828949514,0.13632608,30944.0,30943.0,4.78624]
[1609828949715,0.13632608,30944.0,30943.0,0.13594]
[1609828949917,0.13632608,30944.0,30941.0,0.13632608]
[1609828951118,0.13632608,30944.0,30938.0,3.8522]
[1609828951419,0.13632608,30944.0,30922.0,0.11028]
[1609828952019,3.8864,30938.0,30916.0,1.73832556]
[1609828952618,0.0961,30951.0,30919.0,4.2764]
[1609828952818,0.14889,30948.0,30919.0,4.40602]
[1609828953018,0.0973,30947.0,30919.0,4.40602]
[1609828953418,0.0973,30947.0,30923.0,0.13632608]
[1609828955521,0.0973,30947.0,30936.0,0.13632608]
[1609828955722,0.0973,30947.0,30934.0,0.10051]
[1609828956722,0.783,30947.0,30934.0,0.10051]
[1609828957623,0.2048,30947.0,30939.0,0.13632608]
[1609828959126,0.2048,30947.0,30937.0,3.7135]
[1609828959631,0.13632608,30938.0,30937.0,3.7135]
[1609828960228,0.13632608,30938.0,30936.0,0.13632608]
[1609828960627,0.23242608,30938.0,30932.0,0.09904]
[1609828961627,0.13632608,30933.0,30932.0,0.09904]
[1609828962027,0.13632608,30933.0,30919.0,0.12962]
[1609828962227,0.13632608,30933.0,30910.0,4.3979]
[1609828963530,0.13632608,30933.0,30932.0,0.13632608]
[1609828964331,0.13632608,30933.0,30927.0,0.14748]
[1609828965031,4.8572,30928.0,30904.0,7.003814]
[1609828965233,0.13632608,30933.0,30904.0,1.744814]
[1609828965431,4.6406,30914.0,30904.0,1.883324]
[1609828965632,4.6406,30914.0,30912.0,0.13632608]
[1609828965832,4.6406,30914.0,30912.0,0.11423]
[1609828966031,4.6406,30914.0,30912.0,0.03873]
[1609828966232,4.6406,30914.0,30912.0,3e-05]
[1609828966834,4.7377,30914.0,30912.0,3e-05]
[1609828967232,0.0971,30914.0,30905.0,1.10587725]
[1609828967634,0.13632608,30906.0,30905.0,1.10587725]
[1609828968034,4.40752608,30906.0,30905.0,1.10587725]
[1609828968233,4.40752608,30906.0,30902.0,1.76982062]
[1609828968433,0.13632608,30906.0,30902.0,1.75302062]
[1609828968835,5.1455,30903.0,30902.0,1.75302062]
[1609828969835,5.28182608,30903.0,30902.0,1.65472062]
[1609828970035,5.28182608,30903.0,30902.0,1.26092062]
[1609828970235,5.28182608,30903.0,30902.0,0.95992062]
[1609828970637,5.38002608,30903.0,30886.0,0.13632608]
[1609828970836,5.2437,30903.0,30880.0,5.4118]
[1609828971838,0.13632608,30881.0,30880.0,5.4118]
[1609828972036,0.13632608,30881.0,30873.0,2.09010301]
[1609828972437,4.7903,30895.0,30874.0,0.693]
[1609828972636,4.7903,30895.0,30874.0,0.83598]
[1609828973139,0.24271,30911.0,30874.0,0.14298]
[1609828973337,0.24271,30911.0,30884.0,4.6846]
[1609828973537,0.24271,30911.0,30884.0,4.77656]
[1609828974538,0.14631,30911.0,30884.0,4.77656]
[1609828974939,0.14631,30911.0,30884.0,0.09196]
[1609828975138,0.40991,30936.0,30884.0,0.09196]
[1609828975139,4.9313,30909.0,30884.0,0.09196]
[1609828976339,4.9313,30909.0,30896.0,0.13632608]
[1609828976340,0.13632608,30897.0,30896.0,0.13632608]
[1609828976940,0.0969,30913.0,30896.0,0.13632608]
[1609828977140,0.0969,30913.0,30896.0,0.27884608]
[1609828977342,0.69605976,30929.0,30897.0,4.2733]
[1609828978043,0.69605976,30929.0,30896.0,0.27884608]
[1609828978245,0.13632608,30903.0,30901.0,0.13632608]
[1609828978844,0.13632608,30903.0,30902.0,3.9404]
[1609828979043,0.14098,30917.0,30902.0,3.9404]
[1609828979243,0.14098,30917.0,30909.0,4.755]
[1609828979843,0.69590109,30934.0,30909.0,4.755]
[1609828980244,0.69590109,30934.0,30904.0,0.09786]
[1609828980245,0.69590109,30934.0,30919.0,3.8978]
[1609828980447,0.12951,30936.0,30919.0,3.8978]
[1609828980645,0.69536676,30941.0,30922.0,0.13632608]
[1609828981347,0.69536676,30941.0,30919.0,3.8978]
[1609828981748,0.10016676,30941.0,30919.0,3.8978]
[1609828981948,0.10016676,30941.0,30916.0,0.09723]
[1609828982148,0.1075,30946.0,30930.0,3.844]
[1609828982753,0.1075,30946.0,30945.0,0.13632608]
[1609828982951,0.13632608,30957.0,30949.0,4.63]
[1609828983352,0.84947377,30966.0,30949.0,4.63]
[1609828983751,0.84947377,30966.0,30947.0,0.09214]
[1609828983952,0.11902,30967.0,30947.0,0.09214]
[1609828984151,0.11902,30967.0,30959.0,4.1782]
[1609828984753,0.11902,30967.0,30966.0,0.69212608]
[1609828985354,0.84881727,30989.0,30966.0,0.69212608]
[1609828985554,0.84881727,30989.0,30966.0,0.13632608]
[1609828985755,0.84869178,30991.0,30973.0,5.2293]
[1609828986155,0.84862488,30996.0,30973.0,5.2293]
[1609828986755,0.84862488,30996.0,30984.0,0.6391]
[1609828986957,0.8485602,30998.0,30983.0,0.13632608]
[1609828987156,0.8485602,30998.0,30986.0,4.6095]
[1609828987657,0.0962,31003.0,30986.0,4.6095]
[1609828988757,0.0962,31003.0,30971.0,0.10001]
[1609828988958,0.20321,31003.0,30971.0,0.10001]
[1609828990059,0.20321,31003.0,30964.0,0.12345]
[1609828990260,5.1764,30995.0,30959.0,5.3073]
[1609828990461,0.0953,30994.0,30959.0,5.3073]
[1609828990661,0.13632608,30968.0,30967.0,0.13632608]
[1609828991361,0.14717,30974.0,30967.0,0.13632608]
[1609828992765,0.14717,30974.0,30973.0,0.13632608]
[1609828993665,0.14717,30974.0,30973.0,4.70212608]
[1609828995969,0.0968,30989.0,30973.0,4.70212608]
[1609828996769,0.13632608,30980.0,30973.0,4.5658]
[1609828996969,0.27671608,30980.0,30973.0,4.5658]
[1609828997970,0.0961,30979.0,30955.0,0.10845]
[1609828998170,0.27671608,30980.0,30955.0,0.10845]
[1609828998370,0.27671608,30980.0,30968.0,5.3633]
[1609829000776,0.14039,30980.0,30971.0,0.13632608]
[1609829001978,0.0978,30988.0,30971.0,0.13632608]
[1609829002779,0.13632608,30973.0,30971.0,0.13632608]
[1609829003677,0.12915,30975.0,30971.0,0.13632608]
[1609829004681,0.13632608,30972.0,30971.0,0.13632608]
[1609829004882,0.12915,30975.0,30971.0,0.13632608]
[1609829005683,0.12915,30975.0,30960.0,0.13812]
[1609829005883,0.12915,30975.0,30959.0,5.0606]
[1609829006787,0.13632608,30960.0,30954.0,0.13632608]
[1609829006987,0.13632608,30960.0,30949.0,4.2277]
[1609829007886,0.27286608,30960.0,30917.0,0.2762]
[1609829008086,0.27286608,30960.0,30930.0,5.3136]
[1609829008286,0.27286608,30960.0,30930.0,5.45423]
[1609829008688,0.27286608,30960.0,30930.0,0.14063]
[1609829008889,0.13632608,30934.0,30933.0,4.9299]
[1609829009588,0.13632608,30934.0,30930.0,0.14063]
[1609829009788,0.13632608,30934.0,30902.0,3.7955]
[1609829010591,0.6469,30934.0,30902.0,3.7955]
[1609829010989,0.13632608,30922.0,30912.0,0.13632608]
[1609829011591,0.13632608,30922.0,30897.0,0.2714]
[1609829011791,5.185,30915.0,30897.0,0.2714]
[1609829013093,5.185,30915.0,30913.0,0.13632608]
[1609829013493,5.185,30915.0,30898.0,0.10659]
[1609829013693,0.10284,30917.0,30898.0,0.10659]
[1609829014095,0.10284,30917.0,30898.0,4.21799]
[1609829014393,0.10326,30926.0,30898.0,4.21799]
[1609829014993,0.13632608,30917.0,30909.0,0.13632608]
[1609829015194,0.10326,30926.0,30909.0,0.13632608]
[1609829015395,0.15009,30937.0,30916.0,4.397]
[1609829015595,0.69356256,30948.0,30916.0,4.49913]
[1609829015995,0.69356256,30948.0,30916.0,0.10213]
[1609829016196,0.69356256,30948.0,30927.0,4.964]
[1609829016395,0.69356256,30948.0,30927.0,5.05903]
[1609829016996,0.69356256,30948.0,30947.0,0.13632608]
[1609829017196,0.69356256,30948.0,30934.0,0.10546]
[1609829017398,4.99416256,30948.0,30934.0,0.10546]
[1609829017599,0.69318238,30945.0,30934.0,0.04546]
[1609829017798,0.83458238,30945.0,30934.0,6e-05]
[1609829018300,0.83458238,30945.0,30927.0,4.50903]
[1609829019104,0.13632608,30929.0,30927.0,4.50903]
[1609829019303,0.13632608,30929.0,30916.0,0.10213]
[1609829020704,0.13632608,30929.0,30915.0,0.13632608]
[1609829020909,4.6162,30923.0,30914.0,0.2873]
[1609829021905,4.6162,30923.0,30909.0,0.13988]
[1609829022304,4.6162,30923.0,30901.0,5.23312608]
[1609829023106,0.13632608,30910.0,30909.0,0.13632608]
[1609829023707,4.73132,30923.0,30909.0,0.13632608]
[1609829025112,0.13632608,30921.0,30909.0,0.13632608]
[1609829027214,0.13632608,30913.0,30909.0,0.13632608]
[1609829028915,4.6162,30923.0,30909.0,0.13632608]
[1609829029115,0.13632608,30914.0,30913.0,0.13632608]
[1609829030317,0.13632608,30914.0,30905.0,0.142]
[1609829030718,0.13632608,30914.0,30901.0,5.0968]
[1609829030919,4.73667,30923.0,30901.0,5.0968]
[1609829031120,0.13632608,30918.0,30917.0,0.13632608]
[1609829032121,0.13632608,30918.0,30903.0,3.6794]
[1609829032322,0.12047,30923.0,30901.0,0.12176]
[1609829032520,0.12755,30930.0,30909.0,4.153]
[1609829032720,0.13823,30937.0,30909.0,4.26702]
[1609829032919,3.8993,30944.0,30909.0,4.26702]
[1609829033120,0.281,30965.0,30938.0,0.13632608]
[1609829033320,4.0516,30946.0,30938.0,0.13632608]
[1609829033520,4.0516,30946.0,30925.0,5.3507]
[1609829033718,4.0516,30946.0,30922.0,0.09625]
[1609829033719,0.09961,30946.0,30922.0,0.09625]
[1609829033919,4.1927,30937.0,30922.0,0.09625]
[1609829034320,0.0976,30940.0,30922.0,0.09625]
[1609829034519,0.0976,30940.0,30922.0,4.77665]
[1609829034820,0.0979,30944.0,30922.0,4.77665]
[1609829035123,0.13632608,30923.0,30922.0,4.77665]
[1609829036224,0.13632608,30923.0,30922.0,0.09625]
[1609829036424,0.14571,30936.0,30922.0,0.09625]
[1609829037123,0.14571,30936.0,30924.0,0.13632608]
[1609829039226,0.14571,30936.0,30930.0,0.13632608]
[1609829039628,0.14571,30936.0,30922.0,0.09625]
[1609829039827,0.5716,30935.0,30917.0,4.0172]
[1609829040931,0.14571,30936.0,30910.0,0.2813]
[1609829041129,0.13632608,30932.0,30918.0,0.13632608]
[1609829043132,0.13632608,30928.0,30918.0,0.13632608]
[1609829043332,0.6793,30925.0,30918.0,0.13632608]
[1609829045738,0.13632608,30928.0,30910.0,0.2813]
[1609829046140,5.1571,30918.0,30910.0,0.2813]
[1609829046539,0.14629,30925.0,30910.0,0.2813]
[1609829046739,5.1413,30911.0,30910.0,0.2813]
[1609829046938,5.1413,30911.0,30909.0,0.11402]
[1609829047138,0.14629,30925.0,30901.0,0.10156]
[1609829047339,0.13632608,30910.0,30897.0,0.13632608]
[1609829047539,4.3945,30902.0,30883.0,0.2724]
[1609829047739,0.13632608,30910.0,30882.0,1.84739164]
[1609829047939,4.6155,30892.0,30882.0,1.95230164]
[1609829048941,0.0965,30905.0,30882.0,1.95230164]
[1609829049140,6.5997,30902.0,30882.0,1.95230164]
[1609829049341,5.2482,30883.0,30882.0,1.95230164]
[1609829049541,5.2482,30883.0,30882.0,0.10491]
[1609829049741,0.13632608,30891.0,30882.0,0.10491]
[1609829050342,0.13632608,30891.0,30883.0,3.7379]
[1609829050543,0.1462,30894.0,30883.0,3.7379]
[1609829051847,0.13632608,30890.0,30883.0,3.7379]
[1609829052249,0.1462,30894.0,30882.0,0.10491]
[1609829052449,0.1025,30911.0,30892.0,4.2209]
[1609829053048,0.1025,30911.0,30892.0,4.37001]
[1609829053248,0.092,30918.0,30892.0,4.37001]
[1609829053648,0.69796926,30919.0,30892.0,4.37001]
[1609829053849,0.69796926,30919.0,30892.0,0.14911]
[1609829054050,0.69796926,30919.0,30899.0,3.6726]
[1609829054250,1.43216926,30919.0,30899.0,3.6726]
[1609829054454,0.7342,30919.0,30899.0,3.6726]
[1609829055850,0.13632608,30900.0,30899.0,3.6726]
[1609829057752,0.13632608,30900.0,30883.0,0.2935]
[1609829057952,0.13964,30903.0,30883.0,0.2935]
[1609829058754,0.70304,30903.0,30883.0,0.2935]
[1609829058956,0.70304,30903.0,30882.0,3.77381]
[1609829059557,0.80044,30903.0,30882.0,3.77381]
[1609829059756,0.80044,30903.0,30882.0,0.10491]
[1609829059757,0.23704,30903.0,30882.0,0.10491]